bitfinex-derivatives/quotes_ETHF0:USTF0_20241017
["timestamp","ask_amount","ask_price","bid_price","bid_amount"]
[1729128023582,0.3815,2621.3,2621.2,4.42402]
[1729128023782,0.3815,2621.4,2621.2,4.42402]
[1729128024374,0.3815,2621.3,2621.2,4.42402]
[1729128024971,0.3815,2621.3,2621.2,1.21622]
[1729128025575,0.3815,2621.3,2621.2,0.8347]
[1729128026588,2.68,2621.4,2621.0,0.99432746]
[1729128026885,3.4898,2621.2,2620.7,1.40562746]
[1729128027073,0.38159,2620.7,2620.6,0.99432746]
[1729128027276,0.38162,2620.5,2620.4,0.4162]
[1729128028371,0.38162,2620.5,2620.4,0.79784]
[1729128028572,0.38162,2620.5,2620.4,0.4162]
[1729128030878,0.38165,2620.3,2620.2,4.58377746]
[1729128031179,0.38165,2620.3,2620.2,3.2078]
[1729128035390,2.68,2620.5,2619.8,0.38171]
[1729128035391,0.3817,2620.0,2619.8,0.38171]
[1729128035988,1.113,2620.1,2619.9,0.38171]
[1729128036189,1.49469,2620.1,2619.7,4.61442746]
[1729128036383,1.49469,2620.1,2619.9,0.3817]
[1729128037485,0.38169,2620.0,2619.9,0.3817]
[1729128040880,0.3817,2620.0,2619.9,0.3817]
[1729128041085,0.38168,2620.1,2620.0,0.38169]
[1729128041286,1.49565,2620.3,2620.2,0.38165]
[1729128041486,3.2078,2620.5,2620.1,0.79397]
[1729128041487,0.38166,2620.2,2620.1,0.79397]
[1729128041789,3.2078,2620.5,2620.1,0.79397]
[1729128041790,1.49565,2620.3,2620.2,0.38165]
[1729128041981,1.49565,2620.3,2620.2,0.80845]
[1729128044493,0.38165,2620.3,2620.2,0.4268]
[1729128044991,1.098,2620.4,2620.3,0.38165]
[1729128044992,1.47964,2620.4,2620.3,0.38165]
[1729128045187,0.38165,2620.3,2620.2,0.80846]
[1729128045690,6.9858,2620.4,2620.1,0.4123]
[1729128045990,6.9858,2620.4,2619.7,3.2078]
[1729128045991,0.38169,2620.0,2619.8,1.2263]
[1729128046181,0.38169,2620.0,2619.8,1.60801]
[1729128046687,0.38169,2620.0,2619.9,0.38171]
[1729128047188,0.80399,2620.1,2620.0,0.38169]
[1729128047488,0.38169,2620.1,2620.0,0.38169]
[1729128047885,0.38168,2620.1,2620.0,0.38169]
[1729128048085,0.4047,2620.2,2620.1,0.38168]
[1729128048086,0.78637,2620.2,2620.1,0.38168]
[1729128048289,0.4047,2620.2,2620.1,0.38168]
[1729128048487,1.098,2620.3,2619.8,2.1806]
[1729128048696,0.38167,2620.2,2620.1,0.38166]
[1729128048997,1.47966,2620.3,2620.2,0.38166]
[1729128051891,0.3999,2620.4,2619.8,1.7734]
[1729128052091,3.40045575,2620.7,2620.2,2.68]
[1729128052092,3.2078,2620.7,2620.2,2.68]
[1729128052292,3.2078,2620.7,2620.3,0.77925]
[1729128052293,1.098,2620.4,2620.3,0.77925]
[1729128052597,3.2078,2620.7,2620.6,0.38161]
[1729128052894,0.71641,2620.7,2620.6,0.38161]
[1729128053295,1.098,2620.7,2620.6,0.38161]
[1729128053800,0.71641,2620.7,2620.6,0.38161]
[1729128053996,1.098,2620.7,2620.6,0.38161]
[1729128054699,1.47958,2620.8,2620.7,0.38159]
[1729128055199,0.38158,2620.8,2620.7,0.38159]
[1729128055603,1.098,2620.8,2620.7,0.38159]
[1729128055904,3.2078,2621.1,2620.6,0.38161]
[1729128056208,3.2078,2621.1,2621.0,0.38155]
[1729128056901,0.3968,2621.3,2621.0,2.68]
[1729128057117,0.71651,2621.4,2621.2,5.8878]
[1729128057411,0.8056,2621.7,2621.3,0.38149]
[1729128057412,0.38148,2621.5,2621.3,0.38149]
[1729128058301,0.38148,2621.5,2621.1,0.38153]
[1729128058506,2.3097,2621.7,2621.2,5.8878]
[1729128058507,0.38147,2621.6,2621.2,5.8878]
[1729128058705,1.88555,2621.7,2621.5,0.38148]
[1729128058904,1.88555,2621.7,2621.6,0.80786]
[1729128059211,1.88555,2621.7,2621.6,0.4264]
[1729128060204,0.78755,2621.7,2621.6,0.4264]
[1729128060708,0.4061,2621.7,2621.3,0.4007]
[1729128060894,0.38148,2621.5,2621.4,0.38149]
[1729128061302,0.4061,2621.7,2621.4,0.38149]
[1729128061499,0.38148,2621.5,2621.4,0.38149]
[1729128061806,0.38147,2621.6,2621.4,0.38149]
[1729128062706,0.38148,2621.5,2621.4,0.38149]
[1729128063105,0.38148,2621.5,2621.3,0.7816]
[1729128063304,6.4944,2621.5,2621.0,0.38154]
[1729128063610,0.38153,2621.1,2621.0,0.38154]
[1729128063812,0.7991,2621.4,2620.9,3.58935]
[1729128064108,0.38154,2621.1,2620.9,3.58935]
[1729128064503,0.38155,2621.0,2620.9,3.58935]
[1729128064697,0.7991,2621.4,2620.9,3.58935]
[1729128065101,1.75285,2621.4,2620.9,3.2078]
[1729128065298,0.38155,2621.1,2621.0,0.38154]
[1729128066201,0.38153,2621.2,2621.1,0.38152]
[1729128067208,0.38152,2621.3,2621.2,0.38151]
[1729128069703,0.38152,2621.2,2621.1,0.78733]
[1729128070711,0.38152,2621.2,2621.1,0.4058]
[1729128070916,0.38152,2621.2,2620.8,0.3883]
[1729128070917,3.8152,2621.2,2620.8,0.3883]
[1729128071215,3.0873,2621.3,2620.6,3.2078]
[1729128071216,0.38159,2620.7,2620.6,3.2078]
[1729128071523,3.63389,2621.0,2620.5,0.42]
[1729128071524,3.777,2620.8,2620.5,0.42]
[1729128071810,3.777,2620.8,2620.0,6.88212746]
[1729128071811,0.38166,2620.2,2620.1,0.77577]
[1729128072007,0.38166,2620.2,2620.1,1.16798]
[1729128072315,0.38166,2620.2,2620.1,0.3922]
[1729128073216,0.38166,2620.2,2620.1,0.77388]
[1729128075314,6.3158,2620.4,2619.8,0.4077]
[1729128075618,0.38171,2619.9,2619.8,0.4077]
[1729128076614,0.38171,2620.0,2619.9,0.3817]
[1729128076810,0.38171,2619.9,2619.8,0.78942]
[1729128077013,0.38171,2619.9,2619.8,0.4077]
[1729128077423,0.38171,2619.9,2619.8,0.78942]
[1729128078824,0.3959,2620.1,2619.8,0.4077]
[1729128079026,0.3817,2620.0,2619.9,0.3817]
[1729128079328,0.38171,2619.9,2619.8,0.78941]
[1729128080827,1.5549,2620.1,2619.8,0.4077]
[1729128081128,0.3817,2620.0,2619.9,0.3817]
[1729128083213,0.38169,2620.0,2619.9,0.38171]
[1729128083521,0.3817,2620.0,2619.9,0.3817]
[1729128084420,0.38171,2619.9,2619.8,3.6155]
[1729128084823,0.38171,2619.9,2619.8,3.99722]
[1729128085026,1.5549,2620.1,2619.8,3.6155]
[1729128085322,0.38171,2619.9,2619.8,3.99722]
[1729128086327,0.38171,2619.9,2619.8,3.6155]
[1729128086518,3.8168,2619.9,2619.4,0.395]
[1729128086723,2.68,2620.0,2619.6,0.38175]
[1729128086724,0.38175,2619.7,2619.6,0.38175]
[1729128089526,0.38174,2619.7,2619.6,0.38174]
[1729128089726,0.4301,2619.9,2619.5,0.4032]
[1729128089927,0.38174,2619.7,2619.6,0.38174]
[1729128091025,0.4301,2619.9,2619.6,0.38174]
[1729128091627,0.38174,2619.7,2619.6,0.38174]
[1729128095337,0.38175,2619.7,2619.6,0.38175]
[1729128100142,0.4301,2619.9,2619.5,0.4032]
[1729128100334,0.38173,2619.8,2619.7,0.38173]
[1729128100841,1.93659,2620.1,2620.0,0.38169]
[1729128101239,0.3817,2620.0,2619.9,0.3817]
[1729128101832,0.38169,2620.0,2619.8,0.38172]
[1729128102041,0.38172,2619.9,2619.8,0.38172]
[1729128102935,0.4283,2620.0,2619.5,0.4032]
[1729128103140,0.38174,2619.7,2619.6,0.38175]
[1729128103843,0.38173,2619.8,2619.7,0.38173]
[1729128104142,0.4283,2620.0,2619.5,0.4032]
[1729128104345,0.77759,2620.1,2620.0,0.38169]
[1729128105043,0.77759,2620.1,2620.0,0.79399]
[1729128105543,0.77759,2620.1,2620.0,0.4123]
[1729128106044,1.5433,2620.3,2620.2,0.38166]
[1729128106345,1.137,2620.3,2620.2,0.38166]
[1729128106741,1.51865,2620.3,2620.2,0.38166]
[1729128107242,1.51865,2620.3,2620.0,0.4123]
[1729128107542,0.38165,2620.3,2620.2,0.38166]
[1729128107934,1.5279,2620.5,2620.0,0.4123]
[1729128108135,0.38165,2620.4,2620.2,0.38165]
[1729128108443,0.38165,2620.3,2620.2,0.38165]
[1729128109938,1.5279,2620.5,2620.0,0.4123]
[1729128110146,0.38165,2620.4,2620.3,0.38164]
[1729128110448,1.5279,2620.5,2620.0,1.40662746]
[1729128110637,0.38168,2620.1,2620.0,0.4123]
[1729128111942,2.68,2620.2,2619.8,0.3924]
[1729128112246,0.38169,2620.1,2620.0,0.38169]
[1729128112450,0.38169,2620.1,2620.0,1.37601746]
[1729128112843,0.38168,2620.2,2620.1,0.38167]
[1729128114151,0.38168,2620.2,2620.1,1.37599746]
[1729128114542,0.38168,2620.2,2620.1,0.38167]
[1729128115240,0.38168,2620.2,2620.1,1.37599746]
[1729128115636,0.38168,2620.2,2620.1,2.6938608]
[1729128116344,0.38168,2620.2,2620.1,3.19200588]
[1729128117363,0.38168,2620.2,2620.1,1.70051469]
[1729128119164,0.38168,2620.2,2620.1,1.70052469]
[1729128119665,0.38168,2620.2,2620.1,1.31884469]
[1729128119966,0.38168,2620.2,2620.1,1.70052469]
[1729128120667,0.38168,2620.2,2620.1,1.31924066]
[1729128120862,0.38168,2620.2,2620.1,1.70092066]
[1729128121268,0.38168,2620.2,2620.1,1.31924066]
[1729128121465,0.38168,2620.2,2620.1,2.81953788]
[1729128122067,0.38168,2620.2,2620.1,3.20121788]
[1729128122263,0.38168,2620.2,2620.1,2.81953788]
[1729128122469,7.30618,2620.2,2620.1,2.81953788]
[1729128122658,4.62616,2620.2,2620.1,1.00022562]
[1729128123061,0.38168,2620.1,2620.0,1.00022562]
[1729128123263,0.38168,2620.1,2620.0,2.31955734]
[1729128123466,0.38168,2620.1,2620.0,2.81962894]
[1729128125369,0.38168,2620.1,2620.0,1.31933172]
[1729128125566,0.38168,2620.1,2620.0,2.31959611]
[1729128126659,0.38168,2620.1,2620.0,2.31960419]
[1729128128072,0.38168,2620.1,2620.0,1.00026439]
[1729128128873,0.38168,2620.1,2620.0,2.31961846]
[1729128129475,0.38168,2620.1,2620.0,2.31962749]
[1729128129680,0.38168,2620.1,2620.0,2.31962863]
[1729128129978,0.38168,2620.1,2620.0,1.31936424]
[1729128130172,0.38168,2620.1,2620.0,2.31963799]
[1729128131377,0.38168,2620.1,2620.0,1.00027375]
[1729128131570,0.38168,2620.1,2620.0,2.3196495]
[1729128131869,1.62168,2620.1,2620.0,1.00027375]
[1729128132381,1.50068,2620.1,2620.0,1.00027375]
[1729128132570,1.50068,2620.1,2620.0,3.14916107]
[1729128132770,1.50068,2620.1,2620.0,2.1488796]
[1729128132974,1.50068,2620.1,2620.0,3.14914983]
[1729128133170,2.74068,2620.1,2620.0,3.14914983]
[1729128133371,2.74068,2620.1,2620.0,2.1488796]
[1729128133680,2.74068,2620.1,2620.0,3.14920253]
[1729128134287,2.74068,2620.1,2620.0,2.5305696]
[1729128134473,1.50068,2620.1,2620.0,4.03086682]
[1729128134769,1.50068,2620.1,2620.0,3.64917682]
[1729128135084,2.74068,2620.1,2620.0,3.64917682]
[1729128135580,1.50068,2620.1,2620.0,5.27086682]
[1729128136076,1.50068,2620.1,2620.0,2.5305696]
[1729128138980,1.50068,2620.1,2620.0,2.53094975]
[1729128141382,1.50068,2620.1,2620.0,4.03224004]
[1729128141577,1.50068,2620.1,2620.0,2.53094975]
[1729128142482,1.50068,2620.2,2620.1,0.38167]
[1729128142679,0.38166,2620.2,2620.1,4.44279419]
[1729128142881,0.38166,2620.2,2620.1,1.31975975]
[1729128143184,0.38166,2620.2,2620.1,1.70143975]
[1729128143580,0.38166,2620.2,2620.1,3.202937]
[1729128144178,2.7811,2620.3,2620.1,1.31975975]
[1729128144481,0.38165,2620.3,2620.2,2.82208345]
[1729128144982,1.62165,2620.3,2620.2,2.82208345]
[1729128145283,1.62165,2620.3,2620.2,3.20374345]
[1729128145584,1.62165,2620.3,2620.2,2.82208345]
[1729128147479,2.04715,2620.3,2620.2,2.82208345]
[1729128148481,2.04715,2620.3,2620.2,3.20374345]
[1729128148691,1.24,2620.3,2620.2,3.20374345]
[1729128148878,1.119,2620.4,2620.2,7.19061328]
[1729128149084,1.50064,2620.4,2620.3,1.32044965]
[1729128149279,1.50064,2620.4,2620.3,2.82240399]
[1729128149280,5.31664,2620.4,2620.3,2.82240399]
[1729128149485,10.935,2620.4,2620.2,1.00140077]
[1729128149774,0.78985,2620.3,2620.2,1.00140077]
[1729128150180,5.84665,2620.3,2620.2,1.00140077]
[1729128152188,5.465,2620.3,2620.1,1.00140077]
[1729128152379,1.62166,2620.2,2620.1,1.00140077]
[1729128152578,2.02696,2620.2,2620.1,2.3222912]
[1729128152786,2.02696,2620.2,2620.1,2.32232393]
[1729128153286,2.02696,2620.2,2620.1,1.32089043]
[1729128153789,2.02696,2620.2,2620.1,2.82284477]
[1729128154091,3.26696,2620.2,2620.1,2.32235563]
[1729128154289,3.26696,2620.2,2620.1,1.0014652]
[1729128157287,2.02696,2620.2,2620.1,1.0014652]
[1729128157488,2.02696,2620.2,2620.1,2.32243986]
[1729128157891,2.02696,2620.2,2620.1,1.0014652]
[1729128158495,2.22763769,2620.2,2620.1,2.32241894]
[1729128158788,2.22763769,2620.2,2620.1,1.0014652]
[1729128159092,2.22763769,2620.2,2620.1,2.32241147]
[1729128159779,2.22763769,2620.2,2620.1,1.0014652]
[1729128161191,12.90277769,2620.2,2620.0,0.6244349]
[1729128161402,5.83228,2620.1,2620.0,0.6244349]
[1729128161683,5.83228,2620.1,2620.0,1.94544527]
[1729128161883,5.83228,2620.1,2620.0,0.6244349]
[1729128165088,2.01548,2620.1,2620.0,2.37279085]
[1729128165991,5.83228,2620.1,2620.0,1.0533349]
[1729128166387,2.01548,2620.1,2620.0,1.0533349]
[1729128166589,2.01548,2620.1,2619.8,0.4016]
[1729128166590,5.4506,2620.1,2619.8,1.90355434]
[1729128166893,1.62171,2619.9,2619.8,0.4016]
[1729128167187,1.62171,2619.9,2619.8,3.22337512]
[1729128167390,1.62171,2619.9,2619.8,1.72106734]
[1729128167586,1.62171,2619.9,2619.8,3.22341227]
[1729128167791,1.62171,2619.9,2619.8,1.72106734]
[1729128167986,1.62171,2619.9,2619.8,1.72109099]
[1729128168591,2.69971,2619.9,2619.8,1.72109099]
[1729128173295,2.69971,2619.9,2619.8,3.22330001]
[1729128173493,2.69971,2619.9,2619.8,2.82170001]
[1729128173689,2.69971,2619.9,2619.8,1.31949099]
[1729128173894,2.69971,2619.9,2619.7,1.90960902]
[1729128173895,2.7188,2619.9,2619.7,1.90960902]
[1729128174097,2.7188,2619.9,2619.7,1.50220902]
[1729128174098,5.84062,2619.8,2619.7,1.50220902]
[1729128174294,0.38175,2619.6,2619.5,1.91310902]
[1729128174494,0.38175,2619.6,2619.5,3.23224187]
[1729128174495,1.62175,2619.6,2619.5,3.23224187]
[1729128174693,1.62175,2619.6,2619.5,1.73003285]
[1729128175401,1.62175,2619.6,2619.5,3.23182219]
[1729128177803,0.1960216,2619.7,2619.5,4.47125474]
[1729128178098,1.24,2619.7,2619.6,3.85096032]
[1729128178298,1.62175,2619.7,2619.6,2.61097032]
[1729128178598,1.62175,2619.7,2619.6,0.6223154]
[1729128180894,1.62175,2619.7,2619.6,2.12344029]
[1729128181195,1.62175,2619.7,2619.6,0.38175]
[1729128181699,1.24,2619.7,2619.6,1.50115697]
[1729128181901,1.62174,2619.7,2619.6,1.88290697]
[1729128182096,1.62174,2619.7,2619.6,1.88289706]
[1729128182302,1.24,2619.7,2619.6,0.38175]
[1729128182904,1.24,2619.7,2619.6,1.88289241]
[1729128183198,1.078,2619.8,2619.5,3.63955492]
[1729128183199,1.62173,2619.8,2619.5,3.63955492]
[1729128183412,1.45973,2619.8,2619.7,1.50109639]
[1729128183597,2.69973,2619.8,2619.7,1.50109639]
[1729128183904,2.69973,2619.8,2619.7,1.89809639]
[1729128186502,2.69973,2619.8,2619.7,0.397]
[1729128187806,1.45973,2619.8,2619.7,1.637]
[1729128187992,2.69973,2619.8,2619.7,1.89809639]
[1729128189897,2.69973,2619.8,2619.7,0.397]
[1729128197300,0.38174,2619.7,2619.6,2.37040492]
[1729128197509,1.62174,2619.7,2619.6,4.99816885]
[1729128198007,1.62174,2619.7,2619.6,6.31205727]
[1729128200607,1.62174,2619.7,2619.6,6.31245862]
[1729128204620,1.62174,2619.7,2619.6,6.31294651]
[1729128207514,1.62174,2619.7,2619.6,5.93119651]
[1729128208206,1.62174,2619.7,2619.6,6.31294651]
[1729128209214,1.62174,2619.7,2619.6,5.93119651]
[1729128209215,2.02424,2619.7,2619.6,5.93119651]
[1729128209411,5.84184,2619.7,2619.6,2.81729728]
[1729128209607,6.26604,2619.7,2619.6,1.31418053]
[1729128210305,6.26604,2619.7,2619.6,1.31440356]
[1729128210703,6.26604,2619.7,2619.5,1.50311675]
[1729128210704,0.38175,2619.6,2619.5,1.50311675]
[1729128210908,2.01135,2619.6,2619.5,2.81738471]
[1729128211909,2.01135,2619.6,2619.5,3.21658471]
[1729128212206,2.01135,2619.6,2619.5,0.3992]
[1729128213706,2.20638051,2619.6,2619.5,0.3992]
[1729128218207,0.38175,2619.6,2619.5,0.78097]
[1729128218520,2.69875,2619.6,2619.5,0.78097]
[1729128218716,2.69875,2619.6,2619.5,1.19987]
[1729128219420,2.69875,2619.6,2619.5,0.8181]
[1729128219813,1.62175,2619.6,2619.5,0.8181]
[1729128220012,2.69875,2619.6,2619.5,0.8181]
[1729128220314,2.69875,2619.6,2619.5,2.13199166]
[1729128220618,2.69875,2619.6,2619.5,4.50241658]
[1729128222410,2.69875,2619.6,2619.5,4.12064658]
[1729128222616,2.69875,2619.6,2619.5,2.13199166]
[1729128224515,2.69775,2619.6,2619.5,2.13199166]
[1729128224819,2.69775,2619.6,2619.5,2.51376316]
[1729128225416,2.69775,2619.6,2619.5,2.13199316]
[1729128226921,2.69775,2619.6,2619.5,3.6344893]
[1729128227121,2.69775,2619.6,2619.5,2.13199316]
[1729128229211,2.69775,2619.6,2619.5,3.63445198]
[1729128229822,2.69775,2619.6,2619.5,3.21554353]
[1729128230324,2.69775,2619.6,2619.5,1.71308471]
[1729128230621,2.69775,2619.6,2619.5,3.21551237]
[1729128231724,6.51535,2619.6,2619.5,2.81631237]
[1729128232416,6.51535,2619.6,2619.5,1.31388471]
[1729128233322,6.51535,2619.6,2619.5,2.81631237]
[1729128233822,6.51535,2619.6,2619.5,1.31388471]
[1729128234024,6.1336,2619.6,2619.4,1.50242766]
[1729128234325,1.62177,2619.5,2619.4,1.50242766]
[1729128234822,1.62177,2619.5,2619.4,2.81624749]
[1729128235327,0.38178,2619.4,2619.3,1.89592766]
[1729128235526,2.02368,2619.4,2619.3,3.20974615]
[1729128236817,2.02368,2619.4,2619.3,1.70731849]
[1729128237028,2.02368,2619.4,2619.3,3.20974615]
[1729128237217,2.02368,2619.4,2619.3,1.70731849]
[1729128238415,2.02368,2619.4,2619.3,3.20974615]
[1729128238620,2.02368,2619.4,2619.3,1.31381849]
[1729128238825,2.02368,2619.4,2619.3,1.73231849]
[1729128239122,2.02368,2619.4,2619.3,3.23474615]
[1729128239318,2.02368,2619.4,2619.3,1.73231849]
[1729128239922,2.02368,2619.4,2619.3,3.23474615]
[1729128242320,2.02368,2619.4,2619.3,3.72097341]
[1729128242731,2.02368,2619.4,2619.3,6.34872164]
[1729128242924,2.02368,2619.4,2619.3,6.34870154]
[1729128243124,2.02368,2619.4,2619.3,3.72100379]
[1729128244031,2.02368,2619.4,2619.3,6.34878227]
[1729128244233,2.02368,2619.4,2619.3,3.72100379]
[1729128244530,2.02368,2619.4,2619.3,6.34879229]
[1729128244731,2.02368,2619.4,2619.3,6.34884554]
[1729128245926,2.02368,2619.4,2619.3,3.72100379]
[1729128246127,2.02368,2619.4,2619.3,6.34896911]
[1729128246423,2.02368,2619.4,2619.3,6.34896868]
[1729128247421,2.02368,2619.4,2619.3,6.34906819]
[1729128248133,2.02368,2619.4,2619.3,6.73086819]
[1729128248528,0.69423,2619.5,2619.3,11.29403192]
[1729128248726,1.076,2619.5,2619.4,7.21171192]
[1729128249034,1.93423,2619.5,2619.4,4.72589327]
[1729128249422,1.93423,2619.5,2619.4,7.21171192]
[1729128250129,0.69423,2619.5,2619.4,4.72589327]
[1729128250424,1.93423,2619.5,2619.4,2.09782887]
[1729128251529,2.316,2619.5,2619.4,2.09782887]
[1729128251750,1.93423,2619.5,2619.4,3.60078742]
[1729128251954,1.93423,2619.5,2619.4,2.09782887]
[1729128252155,1.93423,2619.5,2619.4,3.60084087]
[1729128252861,1.93423,2619.5,2619.4,2.09782887]
[1729128254456,2.316,2619.5,2619.4,2.09782887]
[1729128254961,1.93423,2619.5,2619.4,2.09782887]
[1729128255855,1.93423,2619.5,2619.4,4.10152792]
[1729128256661,1.93423,2619.5,2619.4,2.09782887]
[1729128256961,1.93423,2619.5,2619.4,4.10152792]
[1729128257258,1.93423,2619.5,2619.4,7.21284725]
[1729128257656,1.93423,2619.5,2619.4,7.21353856]
[1729128258055,2.316,2619.5,2619.4,4.34593991]
[1729128258257,2.316,2619.5,2619.4,6.35038691]
[1729128259050,2.316,2619.5,2619.4,4.72771991]
[1729128259256,2.316,2619.5,2619.4,6.35057054]
[1729128259450,2.21101543,2619.7,2619.4,7.59057054]
[1729128259763,3.2078,2619.9,2619.6,3.24429939]
[1729128259953,4.4478,2619.9,2619.8,2.38601939]
[1729128260241,4.4478,2619.9,2619.8,4.32535475]
[1729128260536,4.4478,2619.9,2619.8,4.72385475]
[1729128260935,4.4478,2619.9,2619.8,4.09834851]
[1729128262541,4.4478,2619.9,2619.8,2.09479997]
[1729128264131,4.82951,2619.9,2619.8,2.09479997]
[1729128265132,4.82951,2619.9,2619.8,1.71307997]
[1729128265337,4.82951,2619.9,2619.8,0.3985]
[1729128270850,5.90451,2619.9,2619.8,0.3985]
[1729128272439,5.90451,2619.9,2619.8,1.71155718]
[1729128273042,2.69671,2619.9,2619.8,1.71155718]
[1729128273945,2.69671,2619.9,2619.8,3.2134238]
[1729128274251,2.69671,2619.9,2619.8,1.71155718]
[1729128274850,1.62171,2619.9,2619.8,1.71155718]
[1729128275037,2.315,2619.9,2619.8,3.5951438]
[1729128275241,2.69671,2619.9,2619.8,3.5951438]
[1729128276942,2.315,2619.9,2619.8,3.5951438]
[1729128277147,2.315,2619.9,2619.8,3.59486334]
[1729128277844,2.69671,2619.9,2619.8,3.59486334]
[1729128280343,2.69671,2619.9,2619.8,0.78022]
[1729128280649,2.69671,2619.9,2619.8,0.3985]
[1729128281153,2.69672,2619.9,2619.8,0.38172]
[1729128281756,2.69672,2619.9,2619.7,0.3991]
[1729128281757,2.315,2619.9,2619.7,0.3991]
[1729128282051,2.04182,2619.8,2619.7,0.78083]
[1729128282259,1.6601,2619.8,2619.7,0.78083]
[1729128282455,2.04182,2619.8,2619.7,0.78083]
[1729128283052,1.6601,2619.8,2619.4,4.20857364]
[1729128283252,1.24,2619.6,2619.4,1.00077364]
[1729128283453,1.62176,2619.6,2619.5,0.38175]
[1729128285753,0.80655,2619.7,2619.6,0.38175]
[1729128285959,0.80655,2619.7,2619.6,2.03815]
[1729128286157,0.80655,2619.7,2619.6,2.43385]
[1729128286552,0.80655,2619.7,2619.6,1.19385]
[1729128287460,0.80655,2619.7,2619.6,7.13677466]
[1729128288054,3.11483,2619.8,2619.7,0.38174]
[1729128288255,3.11483,2619.8,2619.7,1.69486537]
[1729128290758,3.83231873,2620.0,2619.7,1.69486537]
[1729128290759,1.62172,2619.9,2619.8,0.38172]
[1729128291061,1.62172,2619.9,2619.8,4.93839391]
[1729128291062,1.073,2619.9,2619.8,4.93839391]
[1729128291454,1.073,2619.9,2619.8,7.56508659]
[1729128291762,1.073,2619.9,2619.8,7.56512502]
[1729128291950,1.073,2619.9,2619.8,7.56378291]
[1729128292155,3.1148,2620.0,2619.9,0.38171]
[1729128292354,3.1148,2620.0,2619.9,1.69499549]
[1729128292557,3.1148,2620.0,2619.9,2.10219549]
[1729128292758,3.1148,2620.0,2619.9,4.10440192]
[1729128292959,2.0418,2620.0,2619.9,4.10440192]
[1729128293964,1.6601,2620.0,2619.9,4.10440192]
[1729128294163,2.04179,2620.0,2619.9,2.10219549]
[1729128294365,2.04179,2620.0,2619.9,4.51650192]
[1729128294960,1.6601,2620.0,2619.9,4.51650192]
[1729128295266,2.04179,2620.0,2619.9,4.13479192]
[1729128295459,2.04179,2620.0,2619.9,3.72269192]
[1729128295763,2.04179,2620.0,2619.9,2.10219549]
[1729128296064,2.04179,2620.0,2619.9,1.72048549]
[1729128296464,2.04179,2620.0,2619.9,2.10219549]
[1729128296658,2.04179,2620.0,2619.9,4.10440192]
[1729128296861,2.04179,2620.0,2619.9,2.10219549]
[1729128298558,2.04179,2620.0,2619.9,1.72048549]
[1729128300457,2.04179,2620.0,2619.9,2.10219549]
[1729128300665,2.04179,2620.0,2619.9,1.72048549]
[1729128300867,2.04179,2620.0,2619.9,1.72063237]
[1729128302569,2.04179,2620.0,2619.9,0.4072]
[1729128307173,2.04179,2620.0,2619.9,0.78891]
[1729128309577,2.04179,2620.0,2619.9,0.4072]
[1729128309778,2.04179,2620.0,2619.9,1.31395686]
[1729128312382,1.6601,2620.0,2619.8,2.38392643]
[1729128312585,0.38171,2619.9,2619.8,2.38392643]
[1729128312971,0.38171,2619.9,2619.8,6.32586139]
[1729128313170,2.04181,2620.0,2619.9,0.38171]
[1729128313379,2.04181,2620.0,2619.8,2.00220643]
[1729128313380,1.6601,2620.0,2619.8,2.00220643]
[1729128313581,0.38171,2619.9,2619.8,2.38391643]
[1729128313783,2.0418,2620.0,2619.9,0.38171]
[1729128314383,2.0418,2620.0,2619.9,1.69567179]
[1729128315085,2.04179,2620.0,2619.9,3.1981884]
[1729128315272,2.04179,2620.0,2619.9,1.69567179]
[1729128316778,2.04179,2620.0,2619.9,1.31396179]
[1729128317782,2.04179,2620.0,2619.9,1.69567179]
[1729128317984,2.04179,2620.0,2619.9,1.31396179]
[1729128318183,2.04179,2620.0,2619.9,1.69567179]
[1729128318385,2.04179,2620.0,2619.9,1.31396179]
[1729128318984,2.04179,2620.0,2619.9,1.69567179]
[1729128319184,2.04179,2620.0,2619.9,3.69894441]
[1729128319790,2.04179,2620.0,2619.9,3.31723441]
[1729128319992,2.04179,2620.0,2619.9,1.31396179]
[1729128321389,2.04179,2620.0,2619.9,2.81655566]
[1729128321685,11.85859,2620.0,2619.9,1.31396179]
[1729128321889,11.85859,2620.0,2619.9,2.31597371]
[1729128322088,14.6847,2620.0,2619.7,1.50259387]
[1729128322293,0.38174,2619.7,2619.6,1.50259387]
[1729128322589,1.62174,2619.7,2619.6,1.31248132]
[1729128322795,2.85264,2619.7,2619.6,1.31248132]
[1729128323790,2.44844,2619.7,2619.6,1.31207907]
[1729128323992,4.16205,2620.0,2619.6,2.55207907]
[1729128323993,1.24,2619.8,2619.6,2.55207907]
[1729128324196,1.24,2619.8,2619.7,4.41316131]
[1729128324485,1.24,2619.8,2619.7,4.91419169]
[1729128325186,1.071,2619.9,2619.8,0.38172]
[1729128325389,1.071,2619.9,2619.8,1.62172]
[1729128326189,2.69271,2619.9,2619.8,0.38172]
[1729128329485,2.311,2619.9,2619.8,1.62172]
[1729128329689,1.071,2619.9,2619.8,1.62172]
[1729128331185,1.45271,2619.9,2619.8,1.62172]
[1729128332093,2.69271,2619.9,2619.8,1.62172]
[1729128332289,1.62171,2619.9,2619.8,0.38172]
[1729128332595,1.62171,2619.9,2619.8,6.32163016]
[1729128334097,1.62171,2619.9,2619.8,6.32167869]
[1729128334997,1.62171,2619.9,2619.8,7.56167869]
[1729128336289,1.62171,2619.9,2619.8,7.56177201]
[1729128336486,1.62171,2619.9,2619.8,7.5618925]
[1729128337197,1.24,2619.9,2619.8,7.5618925]
[1729128337394,0.38169,2620.1,2620.0,0.38168]
[1729128337599,0.38169,2620.1,2620.0,1.69397996]
[1729128338103,1.62169,2620.1,2620.0,2.09787996]
[1729128338494,1.62169,2620.1,2620.0,3.60039642]
[1729128340300,1.24,2620.1,2620.0,3.60039642]
[1729128340504,1.24,2620.1,2620.0,0.78558]